bitfinex/quotes_BTCUSD_20240905
["timestamp","ask_amount","ask_price","bid_price","bid_amount"]
[1725553862339,0.001,56308.0,56307.0,0.96202896]
[1725553862556,0.001,56308.0,56307.0,1.31722396]
[1725553863030,0.177569,56316.0,56311.0,0.355166]
[1725553863249,0.355131,56318.0,56313.0,0.1293]
[1725553863484,0.177575,56314.0,56313.0,0.1293]
[1725553863717,0.532726,56314.0,56313.0,0.01]
[1725553863955,0.887877,56314.0,56313.0,0.01]
[1725553864215,0.177591,56309.0,56308.0,0.1188]
[1725553864437,0.177591,56309.0,56307.0,0.001626]
[1725553864438,0.887972,56308.0,56307.0,0.011626]
[1725553864652,1.243161,56308.0,56307.0,0.001626]
[1725553865549,1.243161,56308.0,56307.0,0.011626]
[1725553866387,1.244161,56308.0,56307.0,0.011626]
[1725553866779,1.244161,56308.0,56307.0,0.001626]
[1725553867010,1.60035,56308.0,56307.0,0.004626]
[1725553867226,1.70035,56308.0,56307.0,0.004626]
[1725553867432,1.84205,56308.0,56307.0,0.004626]
[1725553867644,1.84105,56308.0,56307.0,0.001626]
[1725553867853,1.83905,56308.0,56307.0,0.001626]
[1725553868093,1.85881346,56308.0,56307.0,0.001626]
[1725553868327,1.85681346,56308.0,56307.0,0.001626]
[1725553868532,1.85781346,56308.0,56307.0,0.001626]
[1725553868989,1.85981346,56308.0,56307.0,0.001626]
[1725553869207,1.85581346,56308.0,56307.0,0.001626]
[1725553869425,1.71611346,56308.0,56307.0,0.001626]
[1725553870272,2.07930246,56308.0,56307.0,0.001626]
[1725553870505,2.07930246,56308.0,56305.0,0.00164]
[1725553870506,0.022,56306.0,56305.0,0.00164]
[1725553870707,3.93949925,56306.0,56305.0,0.00164]
[1725553870979,4.66979625,56306.0,56305.0,0.00164]
[1725553871187,0.686149,56301.0,56295.0,0.00164]
[1725553871396,3.28229289,56301.0,56295.0,0.00164]
[1725553871627,4.48452314,56301.0,56295.0,0.00164]
[1725553871845,4.78036314,56301.0,56295.0,0.00164]
[1725553872035,3.34220314,56301.0,56295.0,0.00164]
[1725553872494,3.35620314,56301.0,56295.0,0.00164]
[1725553872718,2.107186,56298.0,56295.0,0.00164]
[1725553872940,2.57618,56298.0,56295.0,0.00164]
[1725553873156,2.67877552,56298.0,56295.0,0.00164]
[1725553873339,2.436534,56298.0,56295.0,0.00164]
[1725553873585,2.46437783,56298.0,56295.0,0.00164]
[1725553874475,2.41612283,56298.0,56295.0,0.00164]
[1725553874692,2.24602983,56298.0,56295.0,0.00164]
[1725553874913,2.58032283,56298.0,56295.0,0.00164]
[1725553875377,1.90277783,56298.0,56295.0,0.00164]
[1725553875563,2.37777083,56298.0,56295.0,0.00164]
[1725553876015,2.02712583,56298.0,56295.0,0.00164]
[1725553876632,2.38237783,56298.0,56295.0,0.00164]
[1725553876842,2.02712583,56298.0,56295.0,0.00164]
[1725553877286,1.87382583,56298.0,56295.0,0.00164]
[1725553877506,1.243536,56291.0,56290.0,0.1097158]
[1725553877715,0.88824,56291.0,56290.0,0.1097158]
[1725553877918,0.98824,56291.0,56290.0,0.2323158]
[1725553878854,0.532887,56297.0,56296.0,0.01]
[1725553879063,0.888145,56297.0,56296.0,0.138]
[1725553879267,1.243403,56297.0,56296.0,0.138]
[1725553879507,0.532924,56293.0,56292.0,0.128]
[1725553879733,0.532924,56293.0,56284.0,0.00164]
[1725553879734,0.532963,56289.0,56288.0,0.138]
[1725553879911,0.533001,56285.0,56284.0,0.12964]
[1725553880130,1.243669,56285.0,56284.0,0.12964]
[1725553880458,1.243669,56285.0,56284.0,0.23474]
[1725553880671,0.888335,56285.0,56284.0,0.24474]
[1725553882133,0.533001,56285.0,56284.0,0.24474]
[1725553882550,0.533001,56285.0,56284.0,0.24674]
[1725553882551,0.178667,56285.0,56284.0,0.24674]
[1725553882833,0.178667,56285.0,56284.0,0.95526096]
[1725553882834,0.001,56285.0,56284.0,0.95526096]
[1725553883296,0.001,56285.0,56284.0,0.24674]
[1725553883524,1.244669,56285.0,56284.0,0.24674]
[1725553883975,1.244669,56285.0,56284.0,0.00364]
[1725553884211,1.51410089,56285.0,56284.0,0.00364]
[1725553885067,1.244669,56285.0,56284.0,0.00364]
[1725553885685,1.243669,56285.0,56284.0,0.00364]
[1725553888587,1.25746921,56285.0,56284.0,0.00364]
[1725553894145,1.47321481,56285.0,56284.0,0.00364]
[1725553896316,1.47403081,56285.0,56284.0,0.00364]
[1725553897584,1.82936481,56285.0,56284.0,0.00364]
[1725553898014,2.03189162,56285.0,56284.0,0.00364]
[1725553898639,1.81614602,56285.0,56284.0,0.00364]
[1725553899053,1.81614602,56285.0,56284.0,0.13394]
[1725553899901,1.71361921,56285.0,56284.0,0.13394]
[1725553900120,2.03196681,56285.0,56284.0,0.00364]
[1725553900337,1.92936481,56285.0,56284.0,0.00364]
[1725553900802,1.81614364,56285.0,56284.0,0.00364]
[1725553903323,2.03188924,56285.0,56284.0,0.00364]
[1725553905918,2.57195276,56285.0,56284.0,0.00364]
[1725553906154,2.57195276,56285.0,56284.0,2.5e-07]
[1725553906155,2.62712381,56285.0,56284.0,2.5e-07]
[1725553906367,2.49422324,56285.0,56284.0,2.5e-07]
[1725553906691,2.6251039,56285.0,56284.0,2.5e-07]
[1725553906901,2.6271039,56285.0,56284.0,2.5e-07]
[1725553907103,2.6271039,56285.0,56270.0,0.1024]
[1725553907104,1.243977,56271.0,56270.0,0.1024]
[1725553907336,1.243977,56271.0,56270.0,0.1124]
[1725553909903,1.243977,56271.0,56270.0,0.1134]
[1725553910340,1.243977,56271.0,56270.0,0.1164]
[1725553911196,0.533133,56271.0,56270.0,0.1164]
[1725553911421,0.533133,56271.0,56270.0,0.247]
[1725553911680,0.177711,56271.0,56270.0,0.247]
[1725553911905,0.533133,56271.0,56270.0,0.247]
[1725553912361,0.888555,56271.0,56270.0,0.247]
[1725553912571,0.888555,56271.0,56270.0,0.004]
[1725553912572,1.97030084,56271.0,56270.0,0.004]
[1725553912805,1.80172232,56271.0,56270.0,0.004]
[1725553913071,1.93484122,56271.0,56270.0,0.004]
[1725553913296,1.80172232,56271.0,56270.0,0.004]
[1725553913506,1.92226412,56271.0,56270.0,0.004]
[1725553913734,1.94892969,56271.0,56270.0,0.001]
[1725553913939,1.81581079,56271.0,56270.0,0.001]
[1725553914381,1.94311079,56271.0,56270.0,0.001]
[1725553914616,1.95611079,56271.0,56270.0,0.001]
[1725553915044,1.59957,56265.0,56264.0,0.00164]
[1725553915260,2.01763892,56265.0,56264.0,0.00164]
[1725553915680,1.9153156,56265.0,56264.0,0.00164]
[1725553916096,2.01791892,56265.0,56264.0,0.00164]
[1725553916568,1.34411,56265.0,56264.0,0.00164]
[1725553916840,1.34411,56265.0,56264.0,0.13964]
[1725553916841,0.88865,56265.0,56264.0,0.13964]
[1725553917059,1.24411,56265.0,56264.0,0.13964]
[1725553917263,1.24911,56265.0,56264.0,0.14064]
[1725553917517,0.89365,56265.0,56264.0,0.14064]
[1725553917723,0.005,56265.0,56264.0,0.42035096]
[1725553917969,0.005,56265.0,56264.0,0.24484]
[1725553918205,1.24411,56265.0,56264.0,0.24384]
[1725553918660,0.89665,56265.0,56264.0,0.24484]
[1725553919087,0.88865,56265.0,56264.0,0.24484]
[1725553919941,0.88965,56265.0,56264.0,0.24684]
[1725553920183,0.88965,56265.0,56264.0,0.23684]
[1725553920184,1.24511,56265.0,56264.0,0.23684]
[1725553920400,1.24611,56265.0,56264.0,0.25384]
[1725553920622,1.24511,56265.0,56264.0,0.24684]
[1725553921050,1.24611,56265.0,56264.0,0.25384]
[1725553921482,1.24511,56265.0,56264.0,0.25084]
[1725553921689,1.24511,56265.0,56264.0,0.24684]
[1725553923183,1.24511,56265.0,56264.0,0.24884]
[1725553925370,1.24611,56265.0,56264.0,0.25284]
[1725553926585,0.002,56265.0,56264.0,0.25284]
[1725553926808,0.002,56265.0,56264.0,0.60608396]
[1725553927072,0.002,56265.0,56264.0,0.42835096]
[1725553927309,0.17973,56265.0,56264.0,0.42835096]
[1725553927542,0.53519,56265.0,56264.0,0.42835096]
[1725553927767,0.17973,56265.0,56264.0,0.42835096]
[1725553927999,0.002,56265.0,56264.0,0.42835096]
[1725553928444,0.17973,56265.0,56264.0,0.42835096]
[1725553928889,0.002,56265.0,56264.0,0.42835096]
[1725553929124,0.002,56265.0,56264.0,1.31701796]
[1725553929340,0.002,56265.0,56264.0,1.67448496]
[1725553929563,0.53303,56282.0,56281.0,0.2458]
[1725553930063,0.000816,56285.0,56284.0,0.01]
[1725553930299,0.177667,56285.0,56284.0,0.01]
[1725553930526,0.533001,56285.0,56284.0,0.01]
[1725553930744,0.532956,56290.0,56289.0,0.01]
[1725553931175,0.532956,56290.0,56289.0,0.1341]
[1725553931417,0.19127581,56297.0,56296.0,0.01]
[1725553931688,0.000816,56298.0,56297.0,0.769387]
[1725553931916,0.000816,56298.0,56297.0,1.30015596]
[1725553932421,0.01383992,56316.0,56308.0,0.1318]
[1725553932422,0.35516,56313.0,56308.0,0.1318]
[1725553932652,0.35516,56313.0,56312.0,0.01]
[1725553932886,0.887898,56313.0,56312.0,0.01]
[1725553933127,0.887898,56313.0,56308.0,0.1318]
[1725553933128,0.0136621,56320.0,56318.0,0.01]
[1725553933342,0.887798,56319.0,56318.0,0.01]
[1725553933997,0.532717,56315.0,56314.0,0.01]
[1725553934935,0.887862,56315.0,56314.0,0.01]
[1725553935883,0.003,56315.0,56314.0,1.30388796]
[1725553936100,0.003,56315.0,56314.0,1.65903896]
[1725553936988,0.003,56315.0,56314.0,1.30388796]
[1725553937264,0.003,56315.0,56314.0,0.68933164]
[1725553937475,0.533478,56321.0,56320.0,0.01]
[1725553937690,0.888587,56321.0,56320.0,0.01]
[1725553937909,0.888587,56321.0,56314.0,0.2365]
[1725553937910,0.355925,56321.0,56314.0,0.2365]
[1725553938157,0.177559,56319.0,56318.0,0.01]
[1725553938394,0.887797,56319.0,56318.0,0.01]
[1725553939773,0.532735,56313.0,56312.0,0.01]
[1725553939960,0.887892,56313.0,56312.0,0.01]
[1725553943526,0.532789,56308.0,56307.0,0.01]
[1725553943758,0.355089,56324.0,56320.0,0.01]
[1725553943965,0.1244,56333.0,56320.0,0.01]
[1725553943966,0.178369,56321.0,56320.0,0.1124]
[1725553944438,0.533476,56321.0,56320.0,0.1124]
[1725553944854,0.178369,56321.0,56320.0,0.1124]
[1725553945129,0.541476,56321.0,56320.0,0.1124]
[1725553945552,0.82128308,56321.0,56320.0,0.01]
[1725553945982,0.47217608,56321.0,56320.0,0.01]
[1725553946201,0.183553,56321.0,56320.0,0.01]
[1725553946632,0.006,56321.0,56320.0,0.187556]
[1725553946846,0.006,56321.0,56320.0,0.68011969]
[1725553947785,0.006,56321.0,56320.0,1.67385665]
[1725553948246,0.006,56321.0,56320.0,1.67030596]
[1725553948687,0.006,56321.0,56320.0,1.31519296]
[1725553948914,0.177532,56328.0,56322.0,0.3551]
[1725553949162,0.177532,56328.0,56323.0,0.177547]
[1725553949371,0.177536,56327.0,56323.0,0.177547]
[1725553949587,0.177536,56327.0,56322.0,0.17551096]
[1725553949796,0.177536,56327.0,56322.0,0.35305996]
[1725553950007,0.177525,56330.0,56329.0,0.01]
[1725553950234,0.532575,56330.0,56329.0,0.01]
[1725553950456,0.532575,56330.0,56323.0,0.17906153]
[1725553950457,0.177522,56331.0,56330.0,0.01]
[1725553950684,0.000816,56337.0,56330.0,0.01]
[1725553950685,0.177518,56333.0,56332.0,0.01]
[1725553951094,0.532549,56333.0,56332.0,0.01]
[1725553951345,0.88758,56333.0,56332.0,0.01]
[1725553951553,0.177518,56333.0,56332.0,0.00995988]
[1725553951734,0.177512,56334.0,56332.0,0.00995988]
[1725553951964,0.177512,56334.0,56333.0,0.00995988]
[1725553952645,0.532537,56334.0,56333.0,0.00995988]
[1725553953477,0.177512,56334.0,56333.0,0.00995988]
[1725553953695,0.178512,56334.0,56333.0,0.01795988]
[1725553953924,0.533537,56334.0,56333.0,0.01795988]
[1725553954372,0.533537,56334.0,56333.0,0.014]
[1725553954373,1.244587,56334.0,56333.0,0.014]
[1725553954601,1.470887,56334.0,56333.0,0.014]
[1725553954824,1.825912,56334.0,56333.0,0.014]
[1725553955313,1.470887,56334.0,56333.0,0.014]
[1725553955761,1.825912,56334.0,56333.0,0.014]
[1725553955959,2.179937,56334.0,56333.0,0.006]
[1725553956164,1.242853,56322.0,56321.0,0.00995988]
[1725553956608,0.532698,56317.0,56316.0,0.00995988]
[1725553956817,0.88783,56317.0,56316.0,0.00995988]
[1725553958171,1.20834557,56317.0,56316.0,0.005]
[1725553958401,1.56348057,56317.0,56316.0,0.005]
[1725553958840,1.86742068,56317.0,56316.0,0.005]
[1725553959044,1.88103598,56317.0,56316.0,0.005]
[1725553959266,1.52690098,56317.0,56316.0,0.012]
[1725553959506,1.2575803,56317.0,56316.0,0.005]
[1725553959746,1.3575803,56317.0,56316.0,0.006]
[1725553960405,1.98203598,56317.0,56316.0,0.001]
[1725553961278,1.98203598,56317.0,56316.0,7e-08]
[1725553961693,1.98403598,56317.0,56316.0,7e-08]
[1725553962636,2.57677214,56317.0,56316.0,7e-08]
[1725553962914,2.61977214,56317.0,56316.0,7e-08]
[1725553964829,2.66095175,56309.0,56308.0,0.001632]
[1725553965066,3.54911964,56309.0,56308.0,0.001632]
[1725553965304,3.54911964,56309.0,56308.0,1e-06]
[1725553965305,3.57695385,56309.0,56308.0,1e-06]
[1725553965540,1.243648,56286.0,56285.0,0.52650515]
[1725553966028,0.62462668,56290.0,56281.0,0.1371]
[1725553966029,1.06602,56284.0,56281.0,0.1371]
[1725553966263,0.62462668,56290.0,56279.0,0.00995988]
[1725553966264,0.888415,56280.0,56279.0,0.00995988]
[1725553966751,0.533049,56280.0,56279.0,0.00995988]
[1725553967006,0.888415,56280.0,56279.0,0.00995988]
[1725553967669,1.243781,56280.0,56279.0,0.00995988]
[1725553968169,1.244781,56280.0,56279.0,0.01595988]
[1725553968392,1.244781,56280.0,56279.0,0.01759188]
[1725553968640,1.244781,56280.0,56279.0,0.01959188]
[1725553968873,1.244781,56280.0,56279.0,0.01759188]
[1725553969316,1.243781,56280.0,56279.0,0.01259188]
[1725553969543,1.243781,56280.0,56279.0,0.01159188]
[1725553969781,1.243781,56280.0,56279.0,0.01559188]
[1725553970076,0.888415,56280.0,56279.0,0.006632]
[1725553970320,1.61310168,56280.0,56279.0,0.002632]
[1725553970584,2.23636768,56280.0,56279.0,0.002632]
[1725553970673,2.23836768,56280.0,56279.0,0.002632]
[1725553970913,2.60136168,56276.0,56275.0,0.00164]
[1725553971181,3.17327868,56276.0,56275.0,0.00164]
[1725553972822,3.18227868,56276.0,56275.0,0.00264]
[1725553973075,3.20112988,56276.0,56275.0,0.00164]
[1725553973551,3.16973988,56276.0,56275.0,0.00264]
[1725553973777,2.89541288,56276.0,56275.0,0.00264]
[1725553974003,2.17363088,56276.0,56275.0,0.00364]
[1725553974236,2.16363088,56276.0,56275.0,0.00364]
[1725553974470,2.17734754,56276.0,56275.0,0.00364]
[1725553974933,2.31968854,56276.0,56275.0,0.00364]
[1725553975390,2.32168854,56276.0,56275.0,0.00364]
[1725553975646,2.31968854,56276.0,56275.0,0.00364]
[1725553976104,1.61641034,56276.0,56275.0,2.5e-07]
[1725553976332,1.79410534,56276.0,56275.0,2.5e-07]
[1725553977054,2.14949634,56276.0,56275.0,2.5e-07]
[1725553977283,2.01329634,56276.0,56275.0,2.5e-07]
[1725553977514,2.00639116,56276.0,56275.0,2.5e-07]
[1725553977757,2.01639116,56276.0,56275.0,2.5e-07]
[1725553977987,0.01,56275.0,56265.0,0.1086]
[1725553978282,0.17773,56265.0,56264.0,0.00164]
[1725553978519,0.98865,56265.0,56264.0,0.00164]
[1725553978756,1.69957,56265.0,56264.0,0.00164]
[1725553979240,1.34411,56265.0,56264.0,0.00164]
[1725553980401,1.34711,56265.0,56264.0,0.00164]
[1725553980840,1.34711,56265.0,56264.0,0.01159988]
[1725553981265,1.34711,56265.0,56264.0,0.00164]
[1725553981510,1.71820682,56265.0,56264.0,0.00164]
[1725553982704,3.90296339,56265.0,56264.0,0.00164]
[1725553982938,2.47212682,56265.0,56264.0,0.00164]
[1725553983170,2.47412682,56265.0,56264.0,0.00164]
[1725553983455,2.59702682,56265.0,56264.0,0.00164]
[1725553983665,2.62988419,56265.0,56264.0,0.00164]
[1725553983911,3.33769019,56265.0,56264.0,0.00164]
[1725553984121,3.13255319,56265.0,56264.0,0.00164]
[1725553984557,3.13555319,56265.0,56264.0,0.00164]
[1725553984805,3.13955319,56265.0,56264.0,0.00164]
[1725553985039,2.83331868,56260.0,56259.0,0.00164]
[1725553985341,4.14646768,56260.0,56259.0,0.00164]
[1725553985513,1.86925968,56252.0,56247.0,0.00164]
[1725553985752,2.32480168,56252.0,56247.0,0.00164]
[1725553986020,2.96114368,56252.0,56247.0,0.00164]
[1725553986258,1.88937668,56248.0,56247.0,0.00164]
[1725553986512,2.89282468,56248.0,56247.0,0.00164]
[1725553986753,3.61299268,56248.0,56247.0,0.00063332]
[1725553986993,1.600254,56241.0,56233.0,0.20164]
[1725553987232,1.99257468,56241.0,56233.0,0.20164]
[1725553988471,1.244796,56234.0,56233.0,0.20164]
[1725553988658,1.72737588,56234.0,56233.0,0.20164]
[1725553988890,2.26085988,56234.0,56233.0,0.20164]
[1725553989146,2.28385988,56234.0,56233.0,0.20164]
[1725553990065,2.29285988,56234.0,56233.0,0.20164]
[1725553990528,2.28785988,56234.0,56233.0,0.20164]
[1725553990771,2.29785988,56234.0,56233.0,0.20164]
[1725553991000,1.245041,56223.0,56216.0,0.00013]
[1725553991246,2.98003468,56223.0,56216.0,0.00013]
[1725553991477,3.96818668,56223.0,56216.0,0.00013]
[1725553991685,3.96818668,56223.0,56222.0,1e-06]
[1725553991686,3.99606073,56223.0,56222.0,1e-06]
[1725553992364,4.00306073,56223.0,56222.0,0.001001]
[1725553992576,3.99606073,56223.0,56222.0,1e-06]
[1725553992799,2.332466,56217.0,56216.0,0.00013]
[1725553993050,4.22242668,56217.0,56216.0,0.00013]
[1725553993272,3.93569968,56217.0,56216.0,0.00013]
[1725553993484,3.96357815,56217.0,56216.0,1e-06]
[1725553993953,1.601334,56203.0,56192.0,0.1297]
[1725553994186,1.601334,56203.0,56202.0,0.53753155]
[1725553994490,1.97065468,56203.0,56202.0,0.0110264]
[1725553995160,1.97965468,56203.0,56202.0,0.0120264]
[1725553995597,1.97065468,56203.0,56202.0,0.0110264]
[1725553995826,1.97665468,56203.0,56202.0,0.0120264]
[1725553996073,0.99563,56203.0,56202.0,0.2453264]
[1725553996334,0.633778,56203.0,56202.0,0.25428628]
[1725553996552,0.104,56203.0,56202.0,0.25428628]
[1725553996762,0.181926,56203.0,56202.0,0.25428628]
[1725553997432,0.008,56203.0,56202.0,0.25428628]
[1725553997760,0.008,56203.0,56202.0,0.61014528]
[1725553997952,0.004,56203.0,56202.0,0.25428628]
[1725553998104,0.004,56203.0,56202.0,0.25928628]
[1725553998329,0.177916,56207.0,56203.0,0.1333]
[1725553998557,0.177917,56206.0,56203.0,0.311226]
[1725553998788,0.355806,56211.0,56204.0,0.1275]
[1725553998997,0.533635,56218.0,56217.0,0.00995988]
[1725553999202,0.88944,56215.0,56214.0,0.1275]
[1725553999410,1.245216,56215.0,56214.0,0.1275]
[1725554000689,1.245216,56215.0,56214.0,0.1325]
[1725554001474,0.88944,56215.0,56214.0,0.1375]
[1725554001673,0.177888,56215.0,56214.0,0.1375]
[1725554001903,0.533664,56215.0,56214.0,0.13745988]
[1725554002141,0.88944,56215.0,56214.0,0.1285]
[1725554002369,0.88944,56215.0,56214.0,0.1295]
[1725554002821,0.88944,56215.0,56214.0,0.1285]
[1725554003043,0.533664,56215.0,56214.0,0.1295]
[1725554003484,1.245216,56215.0,56214.0,0.1295]
[1725554003726,0.88944,56215.0,56214.0,0.1295]
[1725554005978,0.533664,56215.0,56214.0,0.1295]
[1725554006252,0.177888,56215.0,56214.0,0.1295]
[1725554006478,0.35659,56216.0,56215.0,0.18784788]
[1725554006479,0.000817,56216.0,56215.0,0.18784788]
[1725554006692,0.000817,56216.0,56215.0,0.42434788]
[1725554007113,0.000817,56216.0,56215.0,1.13589988]
[1725554007329,0.000817,56216.0,56215.0,1.31141084]
[1725554007570,0.000817,56216.0,56215.0,0.24645988]
[1725554008024,0.000817,56216.0,56215.0,0.42434788]
[1725554008246,0.000817,56216.0,56215.0,1.13589988]
[1725554008473,0.001817,56216.0,56215.0,1.13589988]
[1725554008703,0.002817,56216.0,56215.0,0.43434788]
[1725554009093,0.001817,56216.0,56215.0,0.43434788]
[1725554009326,0.002817,56216.0,56215.0,1.15489988]
[1725554009771,0.002817,56216.0,56215.0,1.33041084]
[1725554012111,0.002817,56216.0,56215.0,1.68818684]
[1725554012343,0.002817,56216.0,56215.0,1.68618684]
[1725554012578,0.002817,56216.0,56215.0,1.33041084]
[1725554012833,0.002817,56216.0,56215.0,0.26545988]
[1725554013062,0.002817,56216.0,56215.0,0.25645988]
[1725554013063,0.001817,56216.0,56215.0,0.25645988]
[1725554013516,0.001817,56216.0,56215.0,0.43434788]
[1725554014258,0.001817,56216.0,56215.0,0.79012388]
[1725554014706,0.001817,56216.0,56215.0,0.43834788]
[1725554014902,0.001817,56216.0,56215.0,0.45234788]
[1725554015186,0.000817,56216.0,56215.0,0.26045988]
[1725554015393,0.001817,56216.0,56215.0,0.43834788]
[1725554015619,0.001817,56216.0,56215.0,0.45234788]
[1725554015852,0.001817,56216.0,56215.0,0.43834788]
[1725554016088,0.001817,56216.0,56215.0,0.78012388]
[1725554016089,0.000817,56216.0,56215.0,0.78012388]
[1725554016307,0.000817,56216.0,56215.0,0.80812388]
[1725554016799,0.000817,56216.0,56215.0,0.27445988]
[1725554017043,0.890242,56216.0,56215.0,0.27445988]
[1725554017295,0.890242,56216.0,56215.0,0.2645]
[1725554017535,0.890242,56216.0,56215.0,0.028]
[1725554017536,1.246012,56216.0,56215.0,0.028]
[1725554017767,1.246012,56216.0,56213.0,0.00995988]
[1725554017768,0.889457,56214.0,56213.0,0.00995988]
[1725554018136,0.000817,56216.0,56211.0,0.00995988]
[1725554018137,0.177897,56212.0,56211.0,0.00995988]
[1725554018356,0.88952,56210.0,56209.0,0.23915988]
[1725554018577,0.001817,56216.0,56208.0,0.01159388]
[1725554018578,0.177907,56209.0,56208.0,0.01159388]
[1725554018820,0.889535,56209.0,56208.0,0.01159388]
[1725554019028,1.245349,56209.0,56208.0,0.01159388]
[1725554019721,0.889535,56209.0,56208.0,0.01159388]
[1725554020155,1.245349,56209.0,56208.0,0.01159388]
[1725554020611,0.533721,56209.0,56208.0,0.01159388]
[1725554020844,0.177894,56213.0,56212.0,0.00995988]
[1725554021086,0.533683,56213.0,56212.0,0.00995988]
[1725554021764,0.177894,56213.0,56212.0,0.00995988]
[1725554021993,0.177893,56214.0,56212.0,0.01095988]
[1725554022225,0.177894,56213.0,56212.0,0.01095988]
[1725554022689,0.356589,56216.0,56212.0,0.01095988]
[1725554022690,0.000817,56216.0,56215.0,0.00995988]
[1725554022913,0.000817,56216.0,56215.0,0.32644788]
[1725554023127,0.178702,56216.0,56215.0,0.14855988]
[1725554024002,0.000817,56216.0,56215.0,0.14855988]
[1725554024480,0.178702,56216.0,56215.0,0.14855988]
[1725554024712,0.000817,56216.0,56215.0,0.14855988]
[1725554024910,0.183702,56216.0,56215.0,0.14855988]
[1725554025357,0.895242,56216.0,56215.0,0.14855988]
[1725554026018,0.533674,56214.0,56213.0,0.1057]
[1725554026261,0.533674,56214.0,56213.0,0.11565988]
[1725554026262,0.889457,56214.0,56213.0,0.11565988]
[1725554026499,1.24524,56214.0,56213.0,0.11565988]
[1725554027373,1.24624,56214.0,56213.0,0.11565988]
[1725554027803,0.001,56214.0,56213.0,0.25095988]
[1725554028098,0.001,56214.0,56213.0,0.78464288]
[1725554028701,0.001,56214.0,56213.0,0.42885388]
[1725554028954,0.001,56214.0,56213.0,1.14043188]
[1725554029341,0.001,56214.0,56213.0,0.78464288]
[1725554030017,0.000817,56216.0,56214.0,0.177891]
[1725554031067,0.000817,56216.0,56214.0,0.182891]
[1725554031298,0.000817,56216.0,56215.0,0.18784788]
[1725554031537,0.000817,56216.0,56215.0,1.30971084]
[1725554031781,0.000817,56216.0,56215.0,1.66548684]
[1725554033610,0.000817,56216.0,56215.0,1.66948684]
[1725554033843,0.4726,56244.0,56240.0,0.00995988]
[1725554034081,0.1088,56247.0,56240.0,0.00995988]
[1725554034082,1.05992315,56241.0,56240.0,0.00995988]
[1725554034331,0.63591835,56241.0,56240.0,0.00995988]
[1725554034587,0.99153035,56241.0,56240.0,0.00995988]
[1725554035496,0.88903,56241.0,56240.0,0.01095988]
[1725554036192,0.89203,56241.0,56240.0,0.01195988]
[1725554036636,0.99203,56241.0,56240.0,0.01195988]
[1725554037094,1.347642,56241.0,56240.0,0.01195988]
[1725554037329,0.99203,56241.0,56240.0,0.01195988]
[1725554037983,1.85029179,56241.0,56240.0,0.002]
[1725554038190,1.95260858,56241.0,56240.0,0.002]
[1725554038825,2.06540858,56241.0,56240.0,0.002]
[1725554039037,2.08840858,56241.0,56240.0,1.4e-07]
[1725554039244,2.44402058,56241.0,56240.0,1.4e-07]
[1725554039466,2.20472826,56241.0,56240.0,1.4e-07]
[1725554039677,2.1249602,56241.0,56240.0,1.4e-07]
[1725554039933,2.5005722,56241.0,56240.0,1.4e-07]
[1725554040147,2.5005722,56241.0,56218.0,0.12215988]
[1725554040148,0.177875,56219.0,56218.0,0.00995988]
[1725554040370,0.71154,56216.0,56215.0,0.00995988]
[1725554040658,0.88944,56215.0,56214.0,0.00995988]
[1725554041414,1.245216,56215.0,56214.0,0.00995988]
[1725554041497,0.533721,56209.0,56208.0,0.001634]
[1725554041742,0.889535,56209.0,56208.0,0.001634]
[1725554041979,1.245349,56209.0,56208.0,0.001634]
[1725554042233,1.701163,56209.0,56208.0,0.001634]
[1725554042888,1.345349,56209.0,56208.0,0.001634]
[1725554043360,0.535721,56209.0,56208.0,0.01159388]
[1725554043616,0.535721,56209.0,56208.0,0.12249388]
[1725554043617,0.002,56209.0,56208.0,0.12249388]
[1725554043841,0.002,56209.0,56208.0,0.65978269]
[1725554044099,0.355719,56224.0,56222.0,0.00995988]
[1725554044445,0.533572,56225.0,56224.0,0.00995988]
[1725554044560,0.177859,56225.0,56224.0,0.00995988]
[1725554044794,0.177852,56227.0,56226.0,0.00995988]
[1725554045030,0.177852,56227.0,56226.0,0.14835988]
[1725554045267,0.533552,56227.0,56226.0,0.14835988]
[1725554045481,0.533534,56229.0,56228.0,0.00995988]
[1725554045691,0.177846,56229.0,56228.0,0.00995988]
[1725554045952,0.533534,56229.0,56228.0,0.00995988]
[1725554048504,0.88914,56234.0,56233.0,0.00995988]
[1725554049192,0.89014,56234.0,56233.0,0.00995988]
[1725554049431,0.355669,56232.0,56229.0,0.12045988]
[1725554049666,0.001,56234.0,56229.0,0.12045988]
[1725554049667,0.533523,56230.0,56229.0,0.00995988]
[1725554049877,0.889205,56230.0,56229.0,0.00995988]
[1725554050117,0.889205,56230.0,56223.0,0.1105]
[1725554050118,0.355682,56230.0,56225.0,0.00995988]
[1725554050357,0.1108,56235.0,56223.0,0.1105]
[1725554050358,0.277844,56229.0,56228.0,0.00995988]
[1725554050576,0.40884186,56237.0,56236.0,0.00995988]
[1725554050811,0.633459,56237.0,56236.0,0.00995988]
[1725554051053,0.9891,56237.0,56236.0,0.00995988]
[1725554052576,0.88911,56236.0,56235.0,0.00995988]
[1725554052766,1.344754,56236.0,56235.0,0.00995988]
[1725554053055,0.355726,56223.0,56222.0,0.00995988]
[1725554053525,1.245041,56223.0,56222.0,0.00995988]
[1725554054708,1.245041,56223.0,56222.0,0.01695988]
[1725554054939,1.246041,56223.0,56222.0,0.01695988]
[1725554055465,0.890315,56223.0,56222.0,0.01695988]
[1725554055940,0.001,56223.0,56222.0,0.01695988]
[1725554056400,0.001,56223.0,56222.0,0.19747084]
[1725554056641,0.001,56223.0,56222.0,0.43767084]
[1725554057116,0.001,56223.0,56222.0,0.97126884]
[1725554058028,0.001,56223.0,56222.0,1.32900084]
[1725554058269,0.001,56223.0,56222.0,1.32700084]
[1725554058505,0.4353823,56246.0,56222.0,1.32700084]
[1725554058506,0.000817,56241.0,56240.0,0.00995988]